bitfinex-derivatives/quotes_BTCF0:USTF0_20260107
["timestamp","ask_amount","ask_price","bid_price","bid_amount"]
[1767811167691,0.09312,91383.0,91372.0,0.010953]
[1767811167994,0.010951,91388.0,91372.0,0.010953]
[1767811168496,0.09312,91387.0,91373.0,0.010953]
[1767811168990,0.010951,91388.0,91373.0,0.010953]
[1767811169295,0.09312,91387.0,91373.0,0.010953]
[1767811169794,0.09583168,91386.0,91373.0,0.010953]
[1767811170093,0.09312,91385.0,91373.0,0.010953]
[1767811170485,0.18895168,91385.0,91373.0,0.010953]
[1767811170990,0.18895168,91385.0,91370.0,0.13284723]
[1767811171191,0.01095,91404.0,91378.0,0.09516621]
[1767811171395,0.09312,91403.0,91390.0,0.13284723]
[1767811171596,0.010949,91405.0,91390.0,0.13284723]
[1767811171891,0.01095,91403.0,91388.0,0.010951]
[1767811172192,0.09312,91402.0,91388.0,0.010951]
[1767811172695,0.01095,91403.0,91387.0,0.010952]
[1767811173092,0.09312,91402.0,91387.0,0.010952]
[1767811173290,0.09178757,91401.0,91387.0,0.010952]
[1767811173696,0.09312,91400.0,91387.0,0.010952]
[1767811173891,0.09178757,91399.0,91387.0,0.010952]
[1767811174394,0.10830557,91404.0,91387.0,0.010952]
[1767811174395,0.18490757,91398.0,91387.0,0.010952]
[1767811174795,0.09178757,91398.0,91387.0,0.010952]
[1767811174995,0.09312,91397.0,91387.0,0.010952]
[1767811175494,0.09178757,91398.0,91387.0,0.010952]
[1767811175700,0.09312,91397.0,91387.0,0.010952]
[1767811175899,0.09178757,91398.0,91387.0,0.010952]
[1767811175900,0.09312,91396.0,91387.0,0.010952]
[1767811176896,0.09312,91395.0,91387.0,0.010952]
[1767811180199,0.09178757,91398.0,91387.0,0.010952]
[1767811180399,0.09178757,91398.0,91386.0,0.010952]
[1767811180599,0.18486757,91397.0,91386.0,0.010952]
[1767811180988,0.18486757,91397.0,91387.0,0.010952]
[1767811181191,0.09178757,91396.0,91387.0,0.010952]
[1767811181593,0.09308,91395.0,91387.0,0.010952]
[1767811182602,0.09178757,91396.0,91387.0,0.010952]
[1767811183203,0.09308,91395.0,91387.0,0.010952]
[1767811183608,0.09178757,91394.0,91387.0,0.010952]
[1767811183794,0.09178757,91398.0,91387.0,0.010952]
[1767811184202,0.09308,91397.0,91387.0,0.010952]
[1767811184403,0.18486757,91397.0,91387.0,0.010952]
[1767811186794,0.18486757,91397.0,91380.0,0.13284723]
[1767811187401,0.18486757,91397.0,91387.0,0.010951]
[1767811187596,0.09308,91397.0,91387.0,0.23219987]
[1767811187904,0.09308,91397.0,91388.0,0.09935264]
[1767811187905,0.08817358,91397.0,91388.0,0.09935264]
[1767811188101,0.01517729,91402.0,91398.0,0.01095]
[1767811188507,0.09178757,91408.0,91398.0,0.01095]
[1767811188690,0.18486757,91407.0,91398.0,0.01095]
[1767811189096,0.18486757,91407.0,91393.0,0.010951]
[1767811189402,0.09178757,91406.0,91393.0,0.010951]
[1767811189601,0.09178757,91406.0,91395.0,0.010951]
[1767811190003,0.09308,91405.0,91395.0,0.010951]
[1767811190402,0.09178757,91406.0,91397.0,0.01095]
[1767811190602,0.09308,91405.0,91397.0,0.01095]
[1767811190801,0.09178757,91406.0,91397.0,0.01095]
[1767811191301,0.09308,91405.0,91397.0,0.01095]
[1767811193002,0.18486757,91405.0,91397.0,0.01095]
[1767811194614,0.09178757,91404.0,91393.0,0.010951]
[1767811195808,0.09178757,91404.0,91395.0,0.010951]
[1767811196112,0.18486757,91404.0,91395.0,0.010951]
[1767811196307,0.09178757,91403.0,91389.0,0.09935264]
[1767811196507,0.09178757,91403.0,91390.0,0.13284723]
[1767811196715,0.09178757,91403.0,91392.0,0.010951]
[1767811196912,0.09178757,91403.0,91394.0,0.010951]
[1767811197604,0.09178757,91403.0,91395.0,0.010951]
[1767811197804,0.09308,91404.0,91395.0,0.010951]
[1767811198004,0.18486757,91404.0,91395.0,0.010951]
[1767811198612,0.09178757,91408.0,91391.0,0.09935264]
[1767811198806,0.00218798,91409.0,91404.0,0.01095]
[1767811199006,0.09308,91408.0,91406.0,0.010949]
[1767811199212,0.09308098,91409.0,91406.0,0.010949]
[1767811199512,9.8e-07,91409.0,91406.0,0.010949]
[1767811199707,9.8e-07,91409.0,91403.0,0.01095]
[1767811200221,9.8e-07,91409.0,91395.0,0.01112056]
[1767811200416,9.8e-07,91409.0,91403.0,0.01095]
[1767811201311,9.8e-07,91409.0,91406.0,0.010949]
[1767811201507,0.08955219,91416.0,91406.0,0.010949]
[1767811201508,0.09308,91413.0,91406.0,0.010949]
[1767811202613,0.17933724,91413.0,91403.0,0.01095]
[1767811203111,0.17933724,91413.0,91404.0,0.010949]
[1767811203433,0.17933724,91413.0,91400.0,0.13284723]
[1767811203434,0.08625724,91421.0,91414.0,0.010948]
[1767811203719,0.08625724,91428.0,91412.0,0.09111048]
[1767811203918,0.08625724,91428.0,91400.0,0.13284723]
[1767811203919,0.0917086,91439.0,91418.0,0.13284723]
[1767811204103,0.09308,91438.0,91428.0,0.010947]
[1767811204310,0.09308,91437.0,91424.0,0.010947]
[1767811204912,0.0917086,91439.0,91420.0,0.13284723]
[1767811205108,0.09308,91438.0,91424.0,0.010947]
[1767811205510,0.104026,91438.0,91420.0,0.13284723]
[1767811205708,0.09308,91438.0,91420.0,0.13284723]
[1767811205915,0.08625724,91437.0,91421.0,0.010948]
[1767811206316,0.08625724,91437.0,91420.0,0.13284723]
[1767811207207,0.08625724,91435.0,91415.0,0.010948]
[1767811207410,0.09308,91438.0,91389.0,0.0982035]
[1767811207611,0.08625724,91387.0,91369.0,0.09308]
[1767811207810,0.13284723,91380.0,91367.0,0.09111048]
[1767811208016,0.08625724,91381.0,91367.0,0.09111048]
[1767811208222,0.08625724,91386.0,91367.0,0.09111048]
[1767811208724,7.982e-05,91385.0,91367.0,0.09111048]
[1767811208911,7.982e-05,91385.0,91376.0,0.09111048]
[1767811209112,7.982e-05,91385.0,91377.0,0.09308]
[1767811210018,0.010952,91382.0,91378.0,0.09308]
[1767811210215,0.08633706,91385.0,91363.0,0.09111048]
[1767811210521,0.08633706,91385.0,91357.0,0.010955]
[1767811210522,0.010952,91381.0,91365.0,0.09111048]
[1767811211321,0.010952,91381.0,91366.0,0.09308]
[1767811211521,0.010952,91381.0,91366.0,0.18419048]
[1767811211721,0.010952,91381.0,91367.0,0.09111048]
[1767811211919,0.010952,91381.0,91367.0,0.08811048]
[1767811212219,0.09720924,91382.0,91367.0,0.08811048]
[1767811212413,0.010953,91379.0,91367.0,0.08811048]
[1767811212609,0.010953,91379.0,91368.0,0.09308]
[1767811213414,0.0087643,91379.0,91368.0,0.09308]
[1767811213620,0.010953,91378.0,91368.0,0.09308]
[1767811213821,0.010952,91381.0,91368.0,0.09308]
[1767811214222,0.010953,91377.0,91368.0,0.09308]
[1767811214423,0.08625724,91382.0,91368.0,0.09308]
[1767811214624,0.010953,91379.0,91368.0,0.09308]
[1767811215012,7.982e-05,91385.0,91369.0,0.09308]
[1767811215013,0.21910447,91380.0,91369.0,0.09308]
[1767811215225,0.08625724,91379.0,91369.0,0.09308]
[1767811215424,0.08625724,91379.0,91370.0,0.09308]
[1767811216325,0.010952,91381.0,91370.0,0.09308]
[1767811217222,0.08625724,91383.0,91370.0,0.09308]
[1767811217630,0.08625724,91403.0,91377.0,0.08508974]
[1767811217926,0.09308,91403.0,91385.0,0.09111048]
[1767811218119,0.01095,91402.0,91385.0,0.09111048]
[1767811218325,0.08625724,91402.0,91385.0,0.09111048]
[1767811219227,0.01095,91399.0,91385.0,0.09111048]
[1767811219414,0.01095,91397.0,91372.0,0.09111048]
[1767811219619,0.08625724,91395.0,91376.0,0.010953]
[1767811219820,0.08625724,91395.0,91376.0,0.10206348]
[1767811220224,0.08625724,91395.0,91380.0,0.010952]
[1767811220426,0.08625724,91395.0,91377.0,0.10206348]
[1767811222029,0.08625724,91395.0,91379.0,0.010953]
[1767811222634,0.08625724,91395.0,91379.0,0.09111048]
[1767811223126,0.08625724,91395.0,91379.0,0.10206348]
[1767811223628,0.010951,91394.0,91379.0,0.09111048]
[1767811223814,0.08625724,91395.0,91379.0,0.09111048]
[1767811224126,0.12525016,91395.0,91373.0,0.09111048]
[1767811224328,0.08625724,91394.0,91374.0,0.09308]
[1767811224621,0.08625724,91391.0,91374.0,0.18419048]
[1767811224828,0.09720824,91391.0,91374.0,0.18419048]
[1767811225228,0.08625724,91391.0,91377.0,0.010953]
[1767811225427,0.08625724,91391.0,91374.0,0.18419048]
[1767811225724,0.08625724,91391.0,91375.0,0.104033]
[1767811226121,0.08625724,91391.0,91375.0,0.010953]
[1767811226323,0.010951,91390.0,91374.0,0.09111048]
[1767811226523,0.010952,91388.0,91375.0,0.09308]
[1767811226718,0.010952,91388.0,91376.0,0.09308]
[1767811227120,0.010952,91387.0,91376.0,0.09308]
[1767811228527,0.08625724,91388.0,91374.0,0.09111048]
[1767811228733,0.08625724,91385.0,91369.0,0.010954]
[1767811228921,0.08625724,91385.0,91370.0,0.09308]
[1767811229115,0.08625724,91385.0,91370.0,0.104034]
[1767811230218,0.010952,91382.0,91370.0,0.09308]
[1767811230425,0.010952,91381.0,91371.0,0.09308]
[1767811230623,0.08625724,91382.0,91371.0,0.09308]
[1767811230824,0.09720924,91386.0,91371.0,0.09308]
[1767811231025,0.09720924,91385.0,91371.0,0.09308]
[1767811231427,0.08625724,91385.0,91371.0,0.09308]
[1767811232031,0.08625724,91385.0,91374.0,0.010953]
[1767811232230,0.09326596,91394.0,91372.0,0.09637005]
[1767811232430,0.13200914,91393.0,91372.0,0.09637005]
[1767811232734,0.09326596,91392.0,91372.0,0.09637005]
[1767811233234,0.09326596,91396.0,91379.0,0.010952]
[1767811234029,0.09326596,91395.0,91378.0,0.09637005]
[1767811234226,0.010951,91392.0,91378.0,0.09637005]
[1767811234624,0.10421696,91392.0,91378.0,0.09637005]
[1767811235035,0.09326596,91392.0,91378.0,0.09637005]
[1767811235424,0.10421696,91396.0,91378.0,0.09637005]
[1767811236136,0.10421696,91396.0,91380.0,0.010952]
[1767811236737,0.09326596,91402.0,91381.0,0.09637005]
[1767811236940,0.01095,91397.0,91381.0,0.09637005]
[1767811237138,0.01095,91399.0,91381.0,0.09637005]
[1767811237340,0.10421596,91399.0,91381.0,0.09637005]
[1767811238439,0.09326596,91399.0,91381.0,0.09637005]
[1767811239538,0.010951,91396.0,91381.0,0.09637005]
[1767811240138,0.10421696,91396.0,91381.0,0.09637005]
[1767811240332,0.10421696,91394.0,91376.0,0.09637005]
[1767811240525,0.10421696,91394.0,91379.0,0.10732305]
[1767811241236,0.09326596,91394.0,91380.0,0.010952]
[1767811241438,0.09326596,91394.0,91379.0,0.09637005]
[1767811241634,0.09326596,91394.0,91381.0,0.010952]
[1767811242240,0.09326596,91394.0,91379.0,0.09637005]
[1767811243241,0.10421696,91394.0,91379.0,0.09637005]
[1767811243832,0.010951,91396.0,91380.0,0.10732205]
[1767811244042,0.010951,91396.0,91380.0,0.09637005]
[1767811244343,0.10421696,91396.0,91380.0,0.09637005]
[1767811244546,0.09326596,91402.0,91383.0,0.09637005]
[1767811244847,0.010949,91407.0,91393.0,0.09637005]
[1767811245240,0.09545394,91409.0,91393.0,0.09637005]
[1767811245547,0.01095,91403.0,91393.0,0.09637005]
[1767811246143,0.01095,91402.0,91393.0,0.09637005]
[1767811246337,0.09326596,91406.0,91393.0,0.09637005]
[1767811246547,0.01095,91401.0,91393.0,0.09637005]
[1767811247347,0.01095,91401.0,91388.0,0.09308]
[1767811247549,0.01095,91401.0,91388.0,0.18945005]
[1767811247840,0.03779836,91405.0,91385.0,0.010952]
[1767811248044,0.10421596,91399.0,91385.0,0.010952]
[1767811249341,0.10421596,91399.0,91383.0,0.010952]
[1767811249736,0.09326596,91408.0,91385.0,0.08940876]
[1767811249938,0.09326596,91408.0,91392.0,0.09637005]
[1767811249939,0.010949,91406.0,91392.0,0.09637005]
[1767811250746,0.01095,91400.0,91385.0,0.09637005]
[1767811250950,0.09326596,91403.0,91385.0,0.09637005]
[1767811252144,0.01095,91400.0,91385.0,0.09637005]
[1767811252345,0.09326596,91402.0,91385.0,0.09637005]
[1767811252542,0.01095,91399.0,91385.0,0.09637005]
[1767811252744,0.01095,91403.0,91385.0,0.18577881]
[1767811252946,0.01095,91401.0,91386.0,0.09637005]
[1767811253352,0.01095,91398.0,91386.0,0.09637005]
[1767811254249,0.09326596,91402.0,91386.0,0.09637005]
[1767811254450,0.09326596,91398.0,91385.0,0.09308]
[1767811254653,0.010951,91392.0,91385.0,0.09308]
[1767811254851,0.09326596,91398.0,91381.0,0.09637005]
[1767811254852,0.010951,91388.0,91381.0,0.09637005]
[1767811255153,0.09326596,91398.0,91382.0,0.18945005]
[1767811255448,0.09326596,91398.0,91383.0,0.09637005]
[1767811255649,0.01095,91405.0,91383.0,0.09637005]
[1767811255847,0.010951,91395.0,91383.0,0.09637005]
[1767811257954,0.010951,91393.0,91383.0,0.09637005]
[1767811258758,0.09326596,91401.0,91383.0,0.09637005]
[1767811259253,0.010951,91394.0,91383.0,0.09637005]
[1767811260556,0.09326596,91401.0,91383.0,5e-08]
[1767811260955,0.010951,91394.0,91383.0,5e-08]
[1767811262846,0.09326596,91401.0,91384.0,0.09022339]
[1767811263046,0.10421596,91401.0,91385.0,0.010952]
[1767811263248,0.01095,91399.0,91384.0,0.09022339]
[1767811263749,0.010951,91395.0,91383.0,0.09308]
[1767811264158,0.010951,91395.0,91383.0,0.09022339]
[1767811264547,0.010951,91395.0,91383.0,0.18330339]
[1767811265252,0.08206547,91393.0,91376.0,0.09022339]
[1767811265456,0.010951,91394.0,91378.0,0.09022339]
[1767811266253,0.08206547,91397.0,91378.0,0.09022339]
[1767811266554,0.010951,91393.0,91378.0,0.09022339]
[1767811266751,0.010951,91393.0,91379.0,0.16898526]
[1767811267362,0.010951,91396.0,91379.0,0.16898526]
[1767811268060,0.010951,91396.0,91380.0,0.09022339]
[1767811268255,0.08206547,91394.0,91378.0,0.09022339]
[1767811268461,0.010951,91391.0,91378.0,0.09022339]
[1767811268663,0.010951,91391.0,91379.0,0.09022339]
[1767811268858,0.010951,91394.0,91379.0,0.09022339]
[1767811270166,0.09308,91402.0,91396.0,0.09022339]
[1767811270364,0.09308,91402.0,91391.0,0.010951]
[1767811270968,0.09308,91402.0,91378.0,0.09308]
[1767811270969,0.09308,91402.0,91388.0,0.010951]
[1767811271366,0.09308,91402.0,91390.0,0.010951]
[1767811271660,0.00218798,91409.0,91378.0,0.09308]
[1767811271961,0.010949,91408.0,91378.0,0.09308]
[1767811272153,0.09301447,91408.0,91390.0,0.010951]
[1767811272358,0.08206547,91408.0,91391.0,0.09022339]
[1767811274956,0.09301447,91408.0,91391.0,0.09022339]
[1767811275355,0.08206547,91408.0,91391.0,0.09022339]
[1767811277167,0.08206547,91408.0,91393.0,0.010951]
[1767811277570,0.00218798,91409.0,91392.0,0.09022339]
[1767811277872,0.08425345,91409.0,91392.0,0.09022339]
[1767811279170,0.09301447,91408.0,91392.0,0.09022339]
[1767811279472,0.08206547,91408.0,91393.0,0.010951]
[1767811280474,0.08206547,91408.0,91388.0,0.09308]
[1767811280662,0.08206547,91408.0,91388.0,0.18330339]
[1767811280970,0.08206547,91408.0,91389.0,0.09022339]
[1767811282171,0.08206547,91408.0,91392.0,0.010951]
[1767811282570,0.10476127,91409.0,91385.0,0.09022339]
[1767811282571,0.08206547,91404.0,91385.0,0.09022339]
[1767811282759,0.08206547,91387.0,91365.0,0.18046187]
[1767811282963,0.09301747,91384.0,91366.0,0.010954]
[1767811283262,0.08206547,91384.0,91368.0,0.010954]
[1767811283466,0.08206547,91384.0,91370.0,0.010954]
[1767811284172,0.09162429,91387.0,91367.0,0.17184187]
[1767811284374,0.18464176,91387.0,91367.0,0.17184187]
[1767811284564,0.08206547,91386.0,91367.0,0.17184187]
[1767811285170,0.08206547,91386.0,91367.0,0.27301926]
[1767811285666,0.010952,91385.0,91367.0,0.26206526]
[1767811285864,0.09301747,91385.0,91367.0,0.26206526]
[1767811287668,0.22594447,91390.0,91356.0,0.01096549]
[1767811287868,0.08206547,91369.0,91351.0,0.010956]
[1767811288274,0.09301947,91369.0,91351.0,0.010956]
[1767811288670,0.09301947,91369.0,91351.0,0.08971787]
[1767811288973,0.09301947,91369.0,91351.0,0.07876187]
[1767811289175,0.19565729,91372.0,91352.0,0.010956]
[1767811289375,0.27772276,91372.0,91352.0,0.010956]
[1767811289773,0.27772276,91372.0,91352.0,0.08971787]
[1767811290174,0.09308,91372.0,91356.0,0.09022339]
[1767811290364,0.09308,91372.0,91357.0,0.07876187]
[1767811290564,0.09308,91372.0,91360.0,0.13286447]
[1767811291978,0.09308,91372.0,91359.0,0.010955]
[1767811292380,0.09308,91372.0,91361.0,0.010955]
[1767811293481,0.09308,91372.0,91360.0,0.13286447]
[1767811293976,0.09308,91372.0,91356.0,0.09022339]
[1767811294182,0.09308,91372.0,91357.0,0.010955]
[1767811294483,0.09308,91372.0,91359.0,0.010955]
[1767811296185,0.09308,91372.0,91356.0,0.10117839]
[1767811296385,0.16927624,91372.0,91354.0,0.07725003]
[1767811296582,0.16927624,91372.0,91354.0,0.08820603]
[1767811296782,0.16927624,91372.0,91356.0,0.010955]
[1767811297182,0.16927624,91372.0,91354.0,0.07725003]
[1767811297480,0.09312,91385.0,91367.0,0.07725003]
[1767811297685,0.09312,91385.0,91370.0,0.17667602]
[1767811297876,0.09312,91385.0,91370.0,0.13286447]
[1767811298074,0.010952,91382.0,91365.0,0.07725003]
[1767811300288,0.07619624,91382.0,91364.0,0.09942599]
[1767811301177,0.010953,91379.0,91364.0,0.09942599]
[1767811301376,0.010953,91378.0,91364.0,0.09942599]
[1767811301982,0.010952,91382.0,91367.0,0.07725003]
[1767811302178,0.010952,91382.0,91366.0,0.09942599]
[1767811302782,0.07619624,91374.0,91352.0,0.07725003]
[1767811302986,0.09691193,91369.0,91357.0,0.010955]
[1767811303193,0.17310817,91380.0,91354.0,0.07725003]
[1767811303375,0.10786493,91380.0,91362.0,0.07725003]
[1767811303683,0.10786493,91380.0,91361.0,0.010955]
[1767811303684,0.010953,91378.0,91361.0,0.010955]
[1767811304283,0.18406117,91378.0,91361.0,0.010955]
[1767811304487,0.010953,91376.0,91361.0,0.010955]
[1767811304682,0.010953,91376.0,91359.0,0.14381947]
[1767811304883,0.010954,91370.0,91354.0,0.010956]
[1767811305087,0.18406217,91368.0,91352.0,0.09312]
[1767811305288,0.17310817,91368.0,91354.0,0.010956]
[1767811305789,0.17310817,91368.0,91352.0,0.09312]
[1767811306581,0.17310817,91368.0,91353.0,0.010956]
[1767811307483,0.17310817,91365.0,91349.0,0.00218942]
[1767811307690,0.010955,91358.0,91349.0,0.00218942]
[1767811308077,0.08715124,91361.0,91349.0,0.00218942]
[1767811308590,0.010954,91364.0,91349.0,0.00218942]
[1767811308786,0.17310817,91359.0,91349.0,0.00218942]
[1767811308988,0.18406317,91359.0,91349.0,0.00218942]
[1767811309184,0.09691193,91359.0,91349.0,0.00218942]
[1767811310292,0.08715124,91362.0,91349.0,0.00218942]
[1767811310888,0.07619624,91362.0,91349.0,0.00218942]
[1767811311389,0.18406217,91365.0,91349.0,0.00218942]
[1767811312688,0.17310817,91365.0,91349.0,0.00218942]
[1767811312889,0.09691193,91371.0,91350.0,0.2101145]
[1767811313097,0.09691193,91371.0,91353.0,0.08820603]
[1767811313284,0.17310817,91370.0,91353.0,0.010956]
[1767811313485,0.17310817,91367.0,91350.0,0.13286447]
[1767811314384,0.17310817,91367.0,91351.0,0.010956]
[1767811314585,0.09691193,91367.0,91351.0,0.07725003]
[1767811314789,0.17310817,91372.0,91357.0,0.13286447]
[1767811315797,0.09691193,91372.0,91357.0,0.13286447]
[1767811316090,0.26622817,91375.0,91361.0,0.010955]
[1767811316395,0.17310817,91374.0,91361.0,0.010955]
[1767811316895,0.09691193,91373.0,91361.0,0.010955]
[1767811317195,0.17310817,91373.0,91358.0,0.010955]
[1767811317895,0.17310817,91373.0,91353.0,0.07725003]
[1767811317896,0.17310817,91373.0,91360.0,0.010955]
[1767811318093,0.09312,91375.0,91357.0,0.010955]
[1767811318293,0.09312,91375.0,91364.0,0.07725003]
[1767811318596,0.09312,91375.0,91363.0,0.09942599]
[1767811318797,0.09312,91375.0,91367.0,0.010954]
[1767811319488,0.09312,91375.0,91363.0,0.010954]
[1767811320196,0.09312,91375.0,91366.0,0.010954]
[1767811320394,0.09312,91375.0,91362.0,0.17667602]
[1767811320594,0.09312,91384.0,91367.0,0.09942599]
[1767811320795,0.09312,91391.0,91378.0,0.010953]
[1767811320996,0.09691193,91398.0,91383.0,0.010952]
[1767811321298,0.08610435,91396.0,91380.0,0.13286447]
[1767811321492,0.07515335,91396.0,91380.0,0.13286447]
[1767811322192,0.07515335,91396.0,91375.0,0.010953]
[1767811322193,0.010951,91392.0,91375.0,0.010953]
[1767811322394,0.06882034,91392.0,91370.0,0.13286447]
[1767811322598,0.06882034,91392.0,91376.0,0.010953]
[1767811323299,0.06882034,91392.0,91378.0,0.010953]
[1767811323509,0.09269529,91393.0,91380.0,0.010952]
[1767811324204,0.09269529,91393.0,91380.0,0.14381647]
[1767811324700,0.09269529,91393.0,91380.0,0.010952]
[1767811324901,0.09269529,91393.0,91380.0,0.14381647]
[1767811325398,0.06882034,91396.0,91380.0,0.13286447]
[1767811325605,0.06882034,91396.0,91380.0,0.14381647]
[1767811326211,0.06882034,91395.0,91380.0,0.14381647]
[1767811328009,0.06882034,91395.0,91380.0,0.13286447]
[1767811328302,0.06882034,91395.0,91385.0,0.010952]
[1767811329793,0.06882034,91395.0,91380.0,0.13286447]
[1767811330198,0.06882034,91393.0,91382.0,0.010952]
[1767811331701,0.06882034,91393.0,91384.0,0.010952]
[1767811332008,0.06882034,91393.0,91382.0,0.010952]
[1767811332309,0.09269529,91394.0,91382.0,0.010952]
[1767811332507,0.16151563,91394.0,91382.0,0.010952]
[1767811332908,0.16151563,91394.0,91384.0,0.010952]
[1767811335005,0.09269529,91394.0,91381.0,0.010952]
[1767811335210,0.06882034,91393.0,91383.0,0.010952]
[1767811337509,0.06882034,91393.0,91381.0,0.010952]
[1767811338014,0.06882034,91393.0,91380.0,0.13286447]
[1767811338210,0.16151563,91391.0,91373.0,0.09312]
[1767811338418,0.06882034,91389.0,91380.0,0.13286447]
[1767811340717,0.09269529,91390.0,91380.0,0.13286447]
[1767811341215,0.06882034,91392.0,91380.0,0.13286447]
[1767811342911,0.010951,91391.0,91380.0,0.13286447]
[1767811343112,0.06882034,91391.0,91380.0,0.13286447]
[1767811343519,0.010951,91393.0,91380.0,0.13286447]
[1767811344019,0.07977134,91393.0,91380.0,0.13286447]
[1767811344719,0.06882034,91393.0,91380.0,0.13286447]
[1767811348623,0.06882034,91393.0,91378.0,0.010953]
[1767811349827,0.010951,91392.0,91375.0,0.010953]
[1767811350615,0.010951,91392.0,91376.0,0.010953]
[1767811352829,0.06882034,91393.0,91373.0,0.26763617]
[1767811353827,0.06882034,91393.0,91373.0,0.17451617]
[1767811354030,0.06882034,91393.0,91375.0,0.010953]
[1767811354227,0.06882034,91393.0,91374.0,0.06240273]
[1767811354523,0.15902151,91382.0,91369.0,0.09308]
[1767811354729,0.010952,91386.0,91369.0,0.09308]
[1767811355026,0.010951,91389.0,91370.0,0.06240273]
[1767811355229,0.07399562,91389.0,91370.0,0.06240273]
[1767811355424,0.06304462,91389.0,91370.0,0.07335673]
[1767811360721,0.06304462,91388.0,91370.0,0.07335673]
[1767811360922,0.07399662,91388.0,91370.0,0.07335673]
[1767811363333,0.06304462,91388.0,91372.0,0.010953]
[1767811364233,0.06304462,91386.0,91369.0,0.09308]
[1767811364432,0.06304462,91385.0,91369.0,0.09308]
[1767811364633,0.010952,91383.0,91369.0,0.09308]
[1767811364817,0.15902151,91382.0,91363.0,0.09124592]
[1767811365019,0.06304462,91377.0,91363.0,0.09308]
[1767811365331,0.06304462,91370.0,91355.0,0.010955]
[1767811365728,0.06304462,91370.0,91354.0,0.09308]
[1767811366323,0.010954,91365.0,91354.0,0.09308]
[1767811366830,0.010954,91368.0,91354.0,0.09308]
[1767811367932,0.010954,91369.0,91354.0,0.104036]
[1767811369627,0.07399862,91370.0,91354.0,0.09308]
[1767811370122,0.010954,91368.0,91354.0,0.09308]
[1767811371239,0.07399862,91370.0,91354.0,0.104036]
[1767811371438,0.010954,91368.0,91354.0,0.09308]
[1767811371635,0.15902151,91367.0,91349.0,0.00218942]
[1767811371844,0.09308,91379.0,91315.0,0.09124592]
[1767811371845,0.06304462,91335.0,91315.0,0.09124592]
[1767811372135,0.010958,91333.0,91315.0,0.09124592]
[1767811372329,0.06304462,91335.0,91309.0,0.04987155]
[1767811372330,0.09597689,91334.0,91309.0,0.04987155]
[1767811372539,0.06304462,91328.0,91308.0,0.09124592]
[1767811372940,0.00011081,91327.0,91308.0,0.09124592]
[1767811373139,0.06315543,91327.0,91308.0,0.09124592]
[1767811373339,0.010959,91322.0,91308.0,0.09124592]
[1767811373634,0.01096,91320.0,91308.0,0.09124592]
[1767811373943,0.010959,91323.0,91308.0,0.09124592]
[1767811374143,0.01096,91320.0,91308.0,0.13520659]
[1767811374438,0.06315543,91327.0,91308.0,0.13520659]
[1767811374439,0.01096,91319.0,91308.0,0.13520659]
[1767811374743,0.01096,91319.0,91258.0,0.92322589]
[1767811374744,0.010961,91313.0,91291.0,0.010963]
[1767811375040,0.010961,91313.0,91267.0,0.010966]
[1767811375041,0.010961,91313.0,91297.0,0.09312]
[1767811375341,0.06304462,91270.0,91242.0,0.01100203]
[1767811375529,0.09312,91269.0,91223.0,0.09312]
[1767811375727,0.09312,91268.0,91231.0,0.01097]
[1767811375927,0.06304462,91280.0,91249.0,0.010968]
[1767811375928,0.09312,91274.0,91249.0,0.010968]
[1767811376127,0.09312,91274.0,91247.0,0.09312]
[1767811376341,0.06304462,91291.0,91263.0,0.010966]
[1767811376643,0.104083,91290.0,91265.0,0.09888289]
[1767811377029,0.010963,91290.0,91265.0,0.09888289]
[1767811377227,0.010963,91288.0,91265.0,0.09888289]
[1767811377439,0.06304462,91280.0,91223.0,0.06240273]
[1767811377740,0.09312,91289.0,91242.0,0.09124592]
[1767811377741,0.15902151,91269.0,91242.0,0.09124592]
[1767811377940,0.010966,91267.0,91242.0,0.09124592]
[1767811378130,0.07401062,91267.0,91242.0,0.09124592]
[1767811378326,0.010967,91260.0,91242.0,0.09124592]
[1767811378634,0.010967,91260.0,91229.0,0.09312]
[1767811378635,0.07401162,91260.0,91236.0,0.09124592]
[1767811378836,0.010967,91260.0,91236.0,0.09124592]
[1767811379733,0.010967,91261.0,91236.0,0.09124592]
[1767811379943,0.010967,91261.0,91238.0,0.09124592]
[1767811380139,0.10694389,91263.0,91238.0,0.09124592]
[1767811380440,0.10694389,91263.0,91239.0,0.09124592]
[1767811380840,0.010967,91259.0,91239.0,0.09124592]
[1767811381243,0.010967,91258.0,91239.0,0.09124592]
[1767811381944,0.010967,91259.0,91239.0,0.09124592]
[1767811383439,0.010968,91252.0,91239.0,0.09124592]
[1767811383641,0.09312,91268.0,91225.0,0.09316]
[1767811383642,0.010968,91250.0,91225.0,0.09316]
[1767811383831,0.010968,91250.0,91226.0,0.09586397]
[1767811384036,0.010968,91250.0,91227.0,0.09586397]
[1767811384242,0.010968,91250.0,91229.0,0.15812722]
[1767811384436,0.06571503,91253.0,91229.0,0.15812722]
[1767811384644,0.06571503,91253.0,91230.0,0.10683397]
[1767811384841,0.0932,91257.0,91244.0,0.09586397]
[1767811385047,0.0932,91258.0,91245.0,0.09586397]
[1767811385241,0.09313483,91273.0,91246.0,0.09586397]
[1767811385242,0.0932,91261.0,91246.0,0.09586397]
[1767811385436,0.0932,91261.0,91247.0,0.09586397]
[1767811386037,0.0932,91261.0,91237.0,0.09586397]
[1767811386343,0.0932,91261.0,91237.0,0.15812722]
[1767811386539,0.0932,91261.0,91237.0,0.16909722]
[1767811386748,0.0932,91261.0,91238.0,0.09586397]
[1767811387138,0.010967,91259.0,91238.0,0.09586397]
[1767811387550,9.598e-05,91260.0,91238.0,0.09586397]
[1767811387848,0.010967,91259.0,91238.0,0.09586397]
[1767811388350,9.598e-05,91260.0,91237.0,0.06226325]
[1767811388351,0.15884986,91258.0,91237.0,0.0932]
[1767811388648,0.010967,91257.0,91237.0,0.0932]
[1767811389239,0.010967,91257.0,91234.0,0.09586397]
[1767811389445,0.010967,91257.0,91234.0,0.10683397]
[1767811389635,0.010967,91257.0,91236.0,0.09586397]
[1767811390040,0.010968,91254.0,91236.0,0.09586397]
[1767811391555,0.10410183,91258.0,91236.0,0.10683397]
[1767811391745,0.00877614,91256.0,91236.0,0.10683397]
[1767811393750,0.09313483,91258.0,91236.0,0.09586397]
[1767811394048,0.010968,91253.0,91236.0,0.09586397]
[1767811394253,0.010968,91254.0,91236.0,0.10683397]
[1767811394655,0.06571503,91257.0,91236.0,0.10683397]
[1767811395043,0.010967,91257.0,91237.0,0.16909722]